fUST/lending_fUST_20250312
["ID","MTS","AMOUNT","RATE_DAILY","PERIOD"]
[355993398,1741786232706,-10000.0,0.0001685,2]
[355993400,1741786232718,-12059.52954503,0.0001686,2]
[355993402,1741786232741,-197.92244636,0.00016866,2]
[355993403,1741786232763,-1737.01750244,0.00016867,2]
[355993405,1741786232786,-1737.01750244,0.00016867,2]
[355993406,1741786232809,-1737.01750244,0.00016867,2]
[355993407,1741786232832,-1737.01750244,0.00016867,2]
[355993409,1741786232855,-1737.01750244,0.00016867,2]
[355993411,1741786232881,-1737.01750244,0.00016867,2]
[355993413,1741786232905,-1737.01750244,0.00016867,2]
[355993414,1741786232926,-1737.01750244,0.00016867,2]
[355993415,1741786232949,-1737.01750244,0.00016867,2]
[355993417,1741786232969,-1737.01750244,0.00016867,2]
[355993418,1741786232991,-1737.01750244,0.00016867,2]
[355993419,1741786233012,-1737.01750244,0.00016867,2]
[355993420,1741786233033,-1737.01750244,0.00016867,2]
[355993422,1741786233043,-1737.01750244,0.00016867,2]
[355993423,1741786233053,-1737.01750244,0.00016867,2]
[355993424,1741786233064,-1737.01750244,0.00016867,2]
[355993426,1741786233074,-1737.01750244,0.00016867,2]
[355993428,1741786233085,-1737.01750244,0.00016867,2]
[355993429,1741786233095,-1737.01750244,0.00016867,2]
[355993430,1741786233106,-1737.01750244,0.00016867,2]
[355993431,1741786233116,-1737.01750244,0.00016867,2]
[355993432,1741786233128,-1737.01750244,0.00016867,2]
[355993433,1741786233138,-1737.01750244,0.00016867,2]
[355993434,1741786233149,-1737.01750244,0.00016867,2]
[355993435,1741786233159,-1737.01750244,0.00016867,2]
[355993436,1741786233169,-1737.01750244,0.00016867,2]
[355993437,1741786233180,-1737.01750244,0.00016867,2]
[355993438,1741786233191,-1737.01750244,0.00016867,2]
[355993439,1741786233201,-1737.01750244,0.00016867,2]
[355993440,1741786233211,-1737.01750244,0.00016867,2]
[355993441,1741786233222,-1737.01750244,0.00016867,2]
[355993442,1741786233232,-1091.89050417,0.00016867,2]
[355993456,1741786238217,-292.280989,0.00016867,2]
[355993457,1741786238227,-160.568377,0.00016868,2]
[355993458,1741786238237,-151.0,0.00016868,2]
[355993459,1741786238247,-151.0,0.00016868,2]
[355993460,1741786238256,-151.0,0.00016868,2]
[355993461,1741786238265,-151.930361,0.00016868,2]
[355993462,1741786238275,-151.0,0.00016868,2]
[355993463,1741786238284,-994.221246,0.00016868,2]
[355993464,1741786238294,-994.221246,0.00016868,2]
[355993465,1741786238303,-153.327094,0.00016871,2]
[355993466,1741786238313,-151.0,0.00016871,2]
[355993467,1741786238322,-151.0,0.00016871,2]
[355993469,1741786238331,-252.094449,0.00016871,2]
[355993471,1741786238341,-252.094449,0.00016871,2]
[355993473,1741786238350,-151.0,0.00016872,2]
[355993475,1741786238360,-278.534192,0.00016872,2]
[355993476,1741786238371,-161.402126,0.00016872,2]
[355993478,1741786238382,-500.0,0.00016873,2]
[355993479,1741786238391,-500.0,0.00016873,2]
[355993480,1741786238399,-500.0,0.00016873,2]
[355993481,1741786238408,-500.0,0.00016873,2]
[355993482,1741786238418,-500.0,0.00016873,2]
[355993483,1741786238427,-500.0,0.00016873,2]
[355993484,1741786238436,-500.0,0.00016873,2]
[355993485,1741786238445,-500.0,0.00016873,2]
[355993486,1741786238454,-500.0,0.00016873,2]
[355993487,1741786238463,-617.75880392,0.00016873,2]
[355993488,1741786238473,-500.0,0.00016873,2]
[355993489,1741786238482,-542.95539186,0.00016873,2]
[355993490,1741786238492,-500.0,0.00016873,2]
[355993491,1741786238507,-500.0,0.00016873,2]
[355993492,1741786238516,-500.0,0.00016873,2]
[355993493,1741786238526,-500.0,0.00016873,2]
[355993494,1741786238535,-500.0,0.00016873,2]
[355993495,1741786238545,-500.0,0.00016873,2]
[355993496,1741786238555,-500.0,0.00016873,2]
[355993497,1741786238564,-500.0,0.00016873,2]
[355993498,1741786238573,-500.0,0.00016873,2]
[355993499,1741786238583,-669.0945918,0.00016888,2]
[355993500,1741786238592,-151.0,0.00016898,2]
[355993501,1741786238601,-200.0,0.00016898,2]
[355993502,1741786238610,-200.0,0.00016898,2]
[355993503,1741786238622,-200.0,0.00016898,2]
[355993504,1741786238633,-200.0,0.00016898,2]
[355993505,1741786238642,-200.0,0.00016898,2]
[355993506,1741786238652,-200.0,0.00016898,2]
[355993507,1741786238662,-200.0,0.00016898,2]
[355993508,1741786238671,-200.0,0.00016898,2]
[355993509,1741786238681,-200.0,0.00016898,2]
[355993510,1741786238690,-200.0,0.00016898,2]
[355993511,1741786238700,-200.0,0.00016898,2]
[355993512,1741786238709,-200.0,0.00016898,2]
[355993513,1741786238718,-267.79989044,0.00016898,2]
[355993514,1741786238728,-244.573414,0.00016898,2]
[355993515,1741786238738,-151.0,0.00016898,2]
[355993516,1741786238747,-209.394802,0.00016898,2]
[355993517,1741786238756,-252.094449,0.00016898,2]
[355993518,1741786238765,-252.094449,0.00016898,2]
[355993519,1741786238774,-151.0,0.00016898,2]
[355993520,1741786238783,-151.0,0.00016898,2]
[355993521,1741786238792,-151.0,0.00016898,2]
[355993522,1741786238802,-282.583281,0.00016898,2]
[355993523,1741786238812,-151.0,0.00016898,2]
[355993524,1741786238821,-994.221246,0.00016898,2]
[355993525,1741786238831,-994.221246,0.00016898,2]
[355993526,1741786238840,-151.0,0.00016898,2]
[355993527,1741786238849,-151.0,0.00016898,2]
[355993528,1741786238858,-222000.0,0.00016898,2]
[355993529,1741786238867,-1000.0,0.00016997,2]
[355993530,1741786238880,-1000.0,0.00016997,2]
[355993531,1741786238890,-1000.0,0.00016997,2]
[355993532,1741786238899,-1000.0,0.00016997,2]
[355993533,1741786238909,-1000.0,0.00016997,2]
[355993534,1741786238919,-1000.0,0.00016997,2]
[355993535,1741786238931,-1000.0,0.00016997,2]
[355993536,1741786238945,-1000.0,0.00016997,2]
[355993537,1741786238954,-1000.0,0.00016997,2]
[355993538,1741786238964,-1000.0,0.00016997,2]
[355993539,1741786238975,-737.31691904,0.00016997,2]
[355993540,1741786238984,-200.31182177,0.00017,2]
[355993541,1741786238994,-169.57936196,0.0001705,2]
[355993542,1741786239005,-62439.93637686,0.000171,2]
[355993543,1741786239015,-151.0,0.000171,2]
[355993544,1741786239024,-151.0,0.000171,2]
[355993545,1741786239035,-252.094449,0.000171,2]
[355993546,1741786239049,-252.094449,0.000171,2]
[355993547,1741786239060,-151.0,0.000171,2]
[355993548,1741786239069,-151.0,0.000171,2]
[355993549,1741786239078,-151.0,0.000171,2]
[355993550,1741786239087,-151.0,0.000171,2]
[355993551,1741786239096,-151.0,0.000171,2]
[355993552,1741786239106,-994.221246,0.000171,2]
[355993553,1741786239115,-994.221246,0.000171,2]
[355993554,1741786239126,-151.0,0.000171,2]
[355993555,1741786239135,-3062.62848658,0.00017197,2]
[355993556,1741786239145,-5366.84422955,0.00017197,2]
[355993557,1741786239154,-3611.97349987,0.000172,2]
[355993558,1741786239163,-151.0,0.000172,2]
[355993559,1741786239172,-167.8448478,0.000172,2]
[355993560,1741786239182,-26595.0931271,0.00017307,2]
[355993561,1741786239191,-169.57936196,0.00017334,2]
[355993562,1741786239200,-200.375,0.00017352,2]
[355993563,1741786239210,-167.8448478,0.000174,2]
[355993564,1741786239219,-1920.0,0.00017432,2]
[355993565,1741786239228,-540.0,0.00017432,2]
[355993566,1741786239237,-2272.0,0.00017432,2]
[355993567,1741786239246,-207.209681,0.00017432,2]
[355993568,1741786239255,-751.742,0.00017446,2]
[355993569,1741786239265,-151.0,0.000175,2]
[355993570,1741786239274,-353.0,0.0001758,2]
[355993571,1741786239283,-169.57936196,0.00017617,2]
[355993572,1741786239292,-1348.836,0.00017689,2]
[355993573,1741786239301,-403.47516316,0.00017691,2]
[355993574,1741786239311,-344.65694257,0.00017691,2]
[355993575,1741786239321,-2200.0,0.00017715,2]
[355993576,1741786239330,-1000.0,0.000178,2]
[355993577,1741786239339,-151.0,0.000178,2]
[355993578,1741786239348,-7751.24885811,0.000178,2]
[355993579,1741786239358,-2129.02649266,0.0001782,2]
[355993580,1741786239368,-300.0,0.000179,7]
[355993581,1741786239380,-169.57936196,0.000179,2]
[355993582,1741786239389,-1011.04,0.00017973,2]
[355993583,1741786239399,-7366.54942886,0.00018,5]
[355993584,1741786239408,-147443.73901788,0.00018,2]
[355993585,1741786239417,-670.03440896,0.00018,2]
[355993586,1741786239427,-151.0,0.00018,2]
[355993587,1741786239436,-151.0,0.00018,2]
[355993588,1741786239446,-151.0,0.00018,2]
[355993589,1741786239454,-252.094449,0.00018,2]
[355993590,1741786239464,-252.094449,0.00018,2]
[355993591,1741786239474,-252.094449,0.00018,2]
[355993592,1741786239484,-252.094449,0.00018,2]
[355993593,1741786239493,-151.0,0.00018,2]
[355993594,1741786239503,-151.0,0.00018,2]
[355993595,1741786239512,-151.0,0.00018,2]
[355993596,1741786239522,-208.210136,0.00018,2]
[355993597,1741786239531,-994.221246,0.00018,2]
[355993598,1741786239540,-994.221246,0.00018,2]
[355993599,1741786239549,-160.0,0.00018094,3]
[355993600,1741786239558,-151.0,0.000181,2]
[355993601,1741786239567,-2955.95,0.000183,2]
[355993602,1741786239577,-160.0,0.00018339,4]
[355993603,1741786239586,-151.0,0.000184,2]
[355993604,1741786239595,-420.0,0.00018406,2]
[355993605,1741786239605,-1206.64585765,0.000185,2]
[355993606,1741786239614,-160.0,0.00018584,5]
[355993607,1741786239627,-1000.0,0.000186,2]
[355993608,1741786239637,-1000.0,0.000186,3]
[355993609,1741786239647,-184.64,0.000186,2]
[355993610,1741786239656,-151.0,0.000187,2]
[355993611,1741786239665,-160.0,0.00018829,6]
[355993612,1741786239675,-1826.4642746,0.000189,2]
[355993613,1741786239684,-179.58695001,0.0001897,2]
[355993614,1741786239694,-150.36,0.00018986,2]
[355993615,1741786239704,-150.36,0.00018986,2]
[355993616,1741786239713,-206.171443,0.00018986,2]
[355993617,1741786239722,-500.0,0.0001899,2]
[355993618,1741786239732,-378.78854228,0.00018999,2]
[355993621,1741786239892,-211.64123117,0.00019,120]
[355993622,1741786239902,-160.0,0.00019073,7]
[355993623,1741786239913,-472.76397801,0.000191,120]
[355993624,1741786239929,-151.0,0.000191,2]
[355993625,1741786239939,-1149.46663586,0.000191,2]
[355993626,1741786239949,-1149.46663565,0.000191,2]
[355993627,1741786239959,-160.0,0.00019318,8]
[355993628,1741786239970,-300.0,0.000194,8]
[355993629,1741786239980,-151.0,0.000194,2]
[355993630,1741786239991,-1149.46663565,0.00019417,2]
[355993631,1741786240002,-160.0,0.00019563,9]
[355993632,1741786240015,-729.78851763,0.000196,2]
[355993633,1741786240025,-151.0,0.000197,2]
[355993634,1741786240036,-3810.0,0.00019726,2]
[355993636,1741786240047,-160.0,0.00019807,10]
[355993638,1741786240059,-2891.29371125,0.000199,2]
[355993639,1741786240071,-3000.0,0.000199,2]
[355993641,1741786240082,-277.43519169,0.00019973,2]
[355993644,1741786240094,-500.0,0.00019973,2]
[355993645,1741786240105,-500.0,0.00019973,2]
[355993647,1741786240116,-500.0,0.00019973,2]
[355993649,1741786240138,-500.0,0.00019973,2]
[355993651,1741786240151,-500.0,0.00019973,2]
[355993652,1741786240162,-500.0,0.00019973,2]
[355993653,1741786240174,-425.90635992,0.00019973,2]
[355993654,1741786240185,-500.0,0.00019973,2]
[355993655,1741786240195,-500.0,0.00019973,2]
[355993656,1741786240206,-527.12983452,0.00019973,2]
[355993657,1741786240219,-500.0,0.00019973,2]
[355993658,1741786240241,-230.31197625,0.00019973,2]
[355993659,1741786240255,-500.0,0.00019973,2]
[355993660,1741786240265,-500.0,0.00019973,2]
[355993661,1741786240276,-500.0,0.00019973,2]
[355993662,1741786240286,-500.0,0.00019973,2]
[355993663,1741786240296,-599.82939063,0.00019973,2]
[355993664,1741786240307,-500.0,0.00019973,2]
[355993665,1741786240318,-500.0,0.00019973,2]
[355993667,1741786240328,-500.0,0.00019973,2]
[355993668,1741786240338,-500.0,0.00019973,2]
[355993671,1741786240348,-504.28753099,0.00019973,2]
[355993672,1741786240358,-500.0,0.00019973,2]
[355993674,1741786240367,-500.0,0.00019973,2]
[355993675,1741786240382,-200.009412,0.00019973,2]
[355993676,1741786240392,-500.0,0.00019973,2]
[355993677,1741786240401,-500.0,0.00019973,2]
[355993678,1741786240411,-500.0,0.00019973,2]
[355993679,1741786240420,-500.0,0.00019973,2]
[355993680,1741786240435,-994.221246,0.00019973,2]
[355993681,1741786240445,-994.221246,0.00019973,2]
[355993682,1741786240455,-1795.75962255,0.0002,30]
[355993683,1741786240465,-62868.0,0.0002,2]
[355993684,1741786240474,-62868.0,0.0002,2]
[355993685,1741786240484,-62868.0,0.0002,2]
[355993686,1741786240494,-62868.0,0.0002,2]
[355993687,1741786240504,-62868.0,0.0002,2]
[355993688,1741786240514,-192.78,0.0002,2]
[355993689,1741786240523,-200.0,0.0002,5]
[355993690,1741786240533,-15248.0,0.0002,120]
[355993691,1741786240542,-1000.0,0.0002,5]
[355993692,1741786240552,-1000.0,0.0002,2]
[355993693,1741786240562,-151.0,0.0002,2]
[355993694,1741786240572,-151.0,0.0002,2]
[355993695,1741786240582,-151.0,0.0002,2]
[355993696,1741786240592,-151.0,0.0002,2]
[355993697,1741786240601,-151.0,0.0002,2]
[355993698,1741786240610,-151.0,0.0002,2]
[355993699,1741786240622,-151.0,0.0002,2]
[355993700,1741786240631,-151.0,0.0002,2]
[355993701,1741786240640,-259.899353,0.0002,2]
[355993702,1741786240650,-252.094449,0.0002,2]
[355993703,1741786240659,-252.094449,0.0002,2]
[355993704,1741786240668,-252.094449,0.0002,2]
[355993705,1741786240678,-252.094449,0.0002,2]
[355993706,1741786240688,-252.094449,0.0002,2]
[355993707,1741786240697,-252.094449,0.0002,2]
[355993708,1741786240707,-252.094449,0.0002,2]
[355993709,1741786240716,-252.094449,0.0002,2]
[355993710,1741786240726,-252.094449,0.0002,2]
[355993711,1741786240738,-252.094446,0.0002,2]
[355993712,1741786240747,-188.48197902,0.0002,2]
[355993713,1741786240757,-151.0,0.0002,2]
[355993714,1741786240766,-151.0,0.0002,2]
[355993715,1741786240776,-151.0,0.0002,2]
[355993716,1741786240785,-151.0,0.0002,2]
[355993717,1741786240794,-151.0,0.0002,2]
[355993718,1741786240804,-151.0,0.0002,2]
[355993719,1741786240813,-13519.508,0.0002,2]
[355993720,1741786240823,-213.025188,0.0002,2]
[355993721,1741786240832,-151.0,0.0002,2]
[355993722,1741786240841,-151.0,0.0002,2]
[355993723,1741786240850,-151.0,0.0002,2]
[355993724,1741786240860,-151.0,0.0002,2]
[355993725,1741786240870,-151.0,0.0002,2]
[355993726,1741786240880,-994.221246,0.0002,2]
[355993727,1741786240890,-994.221246,0.0002,2]
[355993728,1741786240900,-994.221246,0.0002,2]
[355993729,1741786240909,-994.221246,0.0002,2]
[355993730,1741786240920,-994.221246,0.0002,2]
[355993731,1741786240929,-994.221246,0.0002,2]
[355993732,1741786240943,-994.221246,0.0002,2]
[355993733,1741786240953,-994.221246,0.0002,2]
[355993734,1741786240963,-994.221246,0.0002,2]
[355993735,1741786240972,-994.221249,0.0002,2]
[355993736,1741786240983,-4844.9249062,0.0002,2]
[355993737,1741786240992,-160.0,0.00020052,11]
[355993738,1741786241002,-403.0,0.00020106,2]
[355993739,1741786241013,-1149.46663565,0.00020176,2]
[355993740,1741786241023,-151.0,0.000202,4]
[355993741,1741786241032,-160.0,0.00020297,12]
[355993742,1741786241041,-10708.91102371,0.0002035,2]
[355993743,1741786241051,-1920.0,0.00020432,2]
[355993744,1741786241061,-540.0,0.00020432,2]
[355993745,1741786241071,-2272.0,0.00020432,2]
[355993746,1741786241082,-160.0,0.00020542,13]
[355993747,1741786241091,-151.09991095,0.00020548,2]
[355993748,1741786241100,-151.0,0.00020548,2]
[355993749,1741786241109,-151.0,0.00020548,2]
[355993750,1741786241119,-151.788353,0.00020548,2]
[355993751,1741786241131,-151.0,0.000206,4]
[355993752,1741786241141,-160.0,0.00020786,14]
[355993753,1741786241151,-678.51,0.000208,7]
[355993754,1741786241161,-186.8724011,0.00020822,2]
[355993755,1741786241171,-186.8724011,0.00020822,2]
[355993756,1741786241180,-186.8724011,0.00020822,2]
[355993757,1741786241189,-186.8724011,0.00020822,2]
[355993758,1741786241198,-186.8724011,0.00020822,2]
[355993759,1741786241208,-324.210631,0.00020822,2]
[355993760,1741786241218,-300.0,0.000209,9]
[355993761,1741786241227,-1149.46663565,0.00020934,2]
[355993762,1741786241237,-3000.0,0.00021,2]
[355993763,1741786241246,-3000.0,0.0002101,2]
[355993764,1741786241256,-3000.0,0.0002102,2]
[355993765,1741786241266,-3000.0,0.0002103,2]
[355993766,1741786241276,-160.0,0.00021031,15]
[355993767,1741786241286,-3000.0,0.0002104,2]
[355993768,1741786241296,-4479.15296,0.0002105,2]
[355993769,1741786241306,-2303.298009,0.000212,30]
[355993770,1741786241315,-160.0,0.00021276,16]
[355993771,1741786241325,-160.0,0.00021521,17]
[355993772,1741786241334,-1149.46663565,0.00021693,3]
[355993773,1741786241344,-1545.0,0.000217,2]
[355993774,1741786241353,-160.0,0.00021765,18]
[355993775,1741786241363,-3000.0,0.00021817,2]
[355993776,1741786241377,-174.09255559,0.00021817,2]
[355993777,1741786241387,-502.93597875,0.00021917,2]
[355993778,1741786241396,-502.00413425,0.00021917,2]
[355993779,1741786241406,-504.96513202,0.00021917,2]
[355993780,1741786241415,-506.07395047,0.00021917,2]
[355993781,1741786241425,-500.0,0.00021917,14]
[355993782,1741786241434,-510.10482625,0.00021917,2]
[355993783,1741786241444,-500.0,0.00021917,2]
[355993784,1741786241453,-512.03859362,0.00021917,2]
[355993785,1741786241463,-517.46512177,0.00021917,2]
[355993786,1741786241472,-520.63928527,0.00021917,2]
[355993787,1741786241482,-313.66917543,0.00021917,2]
[355993788,1741786241492,-500.0,0.00021917,2]
[355993789,1741786241502,-510.58789406,0.00021917,2]
[355993790,1741786241511,-270.838071,0.00021917,2]
[355993791,1741786241521,-428.4761151,0.00021917,2]
[355993792,1741786241530,-501.36794225,0.00021917,2]
[355993793,1741786241540,-500.0,0.00021917,2]
[355993794,1741786241549,-512.83057655,0.00021917,2]
[355993795,1741786241559,-500.0,0.00021917,2]
[355993796,1741786241569,-519.9295524,0.00021917,2]
[355993797,1741786241578,-500.0,0.00021917,2]
[355993798,1741786241587,-503.63777399,0.00021917,2]
[355993799,1741786241597,-500.0,0.00021917,2]
[355993800,1741786241607,-514.45447354,0.00021917,2]
[355993801,1741786241629,-500.0,0.00021917,2]
[355993802,1741786241639,-510.49956206,0.00021917,2]
[355993803,1741786241648,-509.62744111,0.00021917,2]
[355993804,1741786241666,-520.42814251,0.00021917,2]
[355993805,1741786241677,-500.0,0.00021917,2]
[355993806,1741786241687,-495.0,0.00021917,2]
[355993807,1741786241696,-520.78843635,0.00021917,2]
[355993808,1741786241706,-517.92205332,0.00021917,2]
[355993809,1741786241716,-513.8267618,0.00021917,2]
[355993810,1741786241726,-511.91483031,0.00021917,2]
[355993811,1741786241740,-507.31848725,0.00021917,2]
[355993812,1741786241751,-200.0,0.00021917,2]
[355993813,1741786241763,-511.52939846,0.00021917,2]
[355993814,1741786241774,-500.0,0.00021917,2]
[355993815,1741786241786,-558.31316494,0.00021917,2]
[355993816,1741786241795,-506.8930528,0.00021917,2]
[355993817,1741786241805,-516.31551597,0.00021917,2]
[355993818,1741786241814,-523.50611925,0.00021917,2]
[355993819,1741786241824,-500.0,0.00021917,2]
[355993820,1741786241833,-520.06858878,0.00021917,2]
[355993821,1741786241842,-520.36631491,0.00021917,2]
[355993822,1741786241852,-526.67223749,0.00021917,2]
[355993823,1741786241861,-500.0,0.00021917,2]
[355993824,1741786241872,-500.0,0.00021917,2]
[355993825,1741786241881,-500.0,0.00021917,2]
[355993826,1741786241891,-500.0,0.00021917,2]
[355993827,1741786241901,-504.29042166,0.00021917,2]
[355993828,1741786241910,-506.10192912,0.00021917,2]
[355993829,1741786241921,-500.0,0.00021917,2]
[355993830,1741786241933,-514.34267357,0.00021917,2]
[355993831,1741786241943,-520.59963828,0.00021917,2]
[355993832,1741786241952,-502.10240063,0.00021917,2]
[355993833,1741786241963,-505.39198168,0.00021917,2]
[355993834,1741786241972,-269.85497192,0.00021917,2]
[355993835,1741786241982,-504.99093472,0.00021917,2]
[355993836,1741786241991,-501.04247637,0.00021917,2]
[355993837,1741786242002,-500.0,0.00021917,2]
[355993838,1741786242012,-586.2877314,0.00021917,2]
[355993839,1741786242022,-500.91488741,0.00021917,2]
[355993840,1741786242031,-511.76007996,0.00021917,2]
[355993841,1741786242040,-509.64754391,0.00021917,2]
[355993842,1741786242050,-510.81819422,0.00021917,2]
[355993843,1741786242059,-514.65951519,0.00021917,2]
[355993844,1741786242069,-500.0,0.00021917,2]
[355993845,1741786242078,-500.0,0.00021917,2]
[355993846,1741786242087,-807.82,0.00021917,2]
[355993847,1741786242096,-500.0,0.00021917,2]
[355993848,1741786242106,-409.94154966,0.00021917,2]
[355993849,1741786242115,-509.9173985,0.00021917,2]
[355993850,1741786242126,-500.0,0.00021917,2]
[355993851,1741786242136,-400.03262399,0.00021917,2]
[355993852,1741786242145,-515.54027716,0.00021917,2]
[355993853,1741786242155,-501.29052873,0.00021917,2]
[355993854,1741786242164,-504.77159601,0.00021917,2]
[355993855,1741786242174,-513.1934037,0.00021917,2]
[355993856,1741786242183,-505.12944844,0.00021917,2]
[355993857,1741786242192,-506.6040403,0.00021917,2]
[355993858,1741786242202,-517.22708089,0.00021917,2]
[355993859,1741786242211,-509.0700847,0.00021917,2]
[355993860,1741786242220,-502.00304415,0.00021917,2]
[355993861,1741786242229,-317.08529297,0.00021917,2]
[355993862,1741786242238,-500.0,0.00021917,2]
[355993863,1741786242248,-500.0,0.00021917,2]
[355993864,1741786242257,-204.1440205,0.00021917,2]
[355993865,1741786242266,-500.0,0.00021917,2]
[355993866,1741786242275,-500.0,0.00021917,2]
[355993867,1741786242285,-500.0,0.00021917,2]
[355993868,1741786242294,-500.0,0.00021917,2]
[355993869,1741786242304,-500.0,0.00021917,2]
[355993870,1741786242313,-500.0,0.00021917,2]
[355993871,1741786242322,-225.70543005,0.00021917,2]
[355993872,1741786242331,-638.37521778,0.00021917,2]
[355993873,1741786242341,-507.33744744,0.00021917,2]
[355993874,1741786242350,-505.95873464,0.00021917,2]
[355993875,1741786242360,-512.35095462,0.00021917,2]
[355993876,1741786242373,-518.95376314,0.00021917,2]
[355993877,1741786242383,-507.98072865,0.00021917,2]
[355993878,1741786242393,-500.0,0.00021917,2]
[355993879,1741786242404,-507.79973897,0.00021917,2]
[355993880,1741786242414,-520.24598827,0.00021917,2]
[355993881,1741786242424,-507.14291318,0.00021917,2]
[355993882,1741786242434,-513.09017446,0.00021917,2]
[355993883,1741786242444,-512.23505407,0.00021917,2]
[355993884,1741786242454,-501.00112667,0.00021917,2]
[355993885,1741786242464,-505.44945636,0.00021917,2]
[355993886,1741786242474,-500.0,0.00021917,2]
[355993887,1741786242484,-508.71838752,0.00021917,2]
[355993888,1741786242494,-520.20126565,0.00021917,2]
[355993889,1741786242504,-517.08030786,0.00021917,2]
[355993890,1741786242513,-552.28402071,0.00021917,2]
[355993891,1741786242523,-501.50883965,0.00021917,2]
[355993892,1741786242532,-516.97291656,0.00021917,2]
[355993893,1741786242542,-523.29088961,0.00021917,2]
[355993894,1741786242551,-500.0,0.00021917,2]
[355993895,1741786242561,-500.0,0.00021917,2]
[355993896,1741786242570,-500.0,0.00021917,2]
[355993897,1741786242580,-500.0,0.00021917,2]
[355993898,1741786242589,-500.0,0.00021917,2]
[355993899,1741786242599,-500.0,0.00021917,2]
[355993900,1741786242608,-520.99534531,0.00021917,2]
[355993901,1741786242619,-517.86749121,0.00021917,2]
[355993902,1741786242629,-305.27899074,0.00021917,2]
[355993903,1741786242640,-518.17409239,0.00021917,2]
[355993904,1741786242649,-500.0,0.00021917,2]
[355993905,1741786242659,-429.80755991,0.00021917,2]
[355993906,1741786242668,-525.16557436,0.00021917,2]
[355993907,1741786242677,-502.20626117,0.00021917,2]
[355993908,1741786242687,-500.0,0.00021917,2]
[355993909,1741786242696,-510.98112505,0.00021917,2]
[355993910,1741786242706,-510.64584715,0.00021917,2]
[355993911,1741786242716,-511.02940284,0.00021917,2]
[355993912,1741786242726,-535.96563099,0.00021917,2]
[355993913,1741786242735,-500.0,0.00021917,2]
[355993914,1741786242745,-632.11695711,0.00021917,2]
[355993915,1741786242754,-507.30524391,0.00021917,2]
[355993916,1741786242764,-500.0,0.00021917,2]
[355993917,1741786242773,-602.11467675,0.00021917,2]
[355993918,1741786242783,-500.0,0.00021917,2]
[355993919,1741786242792,-500.0,0.00021917,2]
[355993920,1741786242801,-500.0,0.00021917,2]
[355993921,1741786242811,-510.61559445,0.00021917,2]
[355993922,1741786242821,-500.0,0.00021917,2]
[355993923,1741786242830,-443.582252,0.00021917,2]
[355993924,1741786242840,-516.01324364,0.00021917,2]
[355993925,1741786242851,-500.0,0.00021917,2]
[355993926,1741786242860,-500.0,0.00021917,2]
[355993927,1741786242872,-500.0,0.00021917,2]
[355993928,1741786242882,-500.0,0.00021917,2]
[355993929,1741786242891,-500.0,0.00021917,2]
[355993930,1741786242900,-500.0,0.00021917,2]
[355993931,1741786242910,-500.0,0.00021917,2]
[355993932,1741786242925,-545.88626564,0.00021917,2]
[355993933,1741786242939,-500.0,0.00021917,2]
[355993934,1741786242949,-500.0,0.00021917,2]
[355993935,1741786242959,-511.42032898,0.00021917,2]
[355993936,1741786242968,-495.01422473,0.00021917,2]
[355993937,1741786242979,-500.0,0.00021917,2]
[355993938,1741786242988,-530.58618749,0.00021917,2]
[355993939,1741786242998,-508.16056948,0.00021917,2]